Cogmind - Beta 13 @@@ ROGUE MODE // 2024.04.07 @ 02:23:43 Player: SnowyImp Result: Destroyed by P-60 Hacker with Shock Rifle Performance ------------- Evolutions (3) 1500 Regions Visited (8) 1600 Robots Destroyed (54) 270 Value Destroyed (2838) 2838 Prototype IDs (4) 80 Alien Tech Used (0) 0 Bonus (1514) 1514 TOTAL SCORE: 7802 Bonus ------- High Alert Combat Kills 495 Follower Combat Kills 319 Entered Garrisons 200 Used RIF Installer 500 Cogmind --------- Core Integrity 0/700 Matter 214/300 Energy 305/310 System Corruption 4% Temperature Cool (1) Movement Walking (140) Location -7/Storage Parts ------- > --- POWER (1) -------- Cooled Deuterium Engine > --- PROPULSION (6) --- Titanium Leg Light Armored Exoskeleton Light Armored Exoskeleton Cooled VTOL Module > --- UTILITY (4) ------ Advanced Visual Processing Unit Core Analyzer Improved Light Armor Plating > --- WEAPON (2) ------- Great Maul Impact Mace > --- INVENTORY (5) ---- Heavy Deuterium Engine Light Armored Exoskeleton Authchip [R/Combat] Powered Hammer Peak State ------------ > --- POWER ------------ Cooled Deuterium Engine > --- PROPULSION ------- Titanium Leg Light Armored Exoskeleton Light Armored Exoskeleton Cooled VTOL Module > --- UTILITY ---------- Advanced Visual Processing Unit Core Analyzer Microactuators Shield Generator > --- WEAPON ----------- Great Maul Impact Mace > --- INVENTORY -------- Heavy Deuterium Engine Light Armored Exoskeleton Authchip [R/Combat] Powered Hammer [Rating: 52] Favorites ----------- Power Light Nuclear Core Engine Ion Engine Power Core Light Nuclear Core Propulsion Light Armored Exoskeleton Treads Light Treads Leg Light Armored Exoskeleton Wheel Armored Wheel Flight Unit VTOL Module Utility Advanced Visual Processing Unit Device Microactuators Processor Advanced Visual Processing Unit Hackware Hacking Suite Protection Improved Light Armor Plating Weapon Great Maul Energy Gun Small Laser Energy Cannon Particle Cannon Special Weapon Mining Laser Impact Weapon Great Maul Slashing Weapon Scythe Build | -11 -10 -10 -9 -8 -7 -7 -7 -7 ------- Run | Yrd Mat Min Mat Mat Fac Gar Fac Sto Slots Evolved 6 | . . . 2 2 2 . . . Power . | . . . . . . . . . Propulsion 4 | . . . 2 . 2 . . . Utility 2 | . . . . 2 . . . . Weapon . | . . . . . . . . . Parts Attached 77 | 4 1 2 15 10 19 7 9 10 Power 10 | 1 . . 1 2 1 2 1 2 Engine 5 | 1 . . 1 1 . . . 2 Core 5 | . . . . 1 1 2 1 . Reactor . | . . . . . . . . . Propulsion 37 | 2 . 2 8 4 10 4 4 3 Treads 3 | . . . . 3 . . . . Leg 20 | 2 . . 3 1 5 4 4 1 Wheel 3 | . . . 2 . 1 . . . Hover . | . . . . . . . . . Flight 11 | . . 2 3 . 4 . . 2 Utility 18 | . . . 4 2 6 1 2 3 Device 6 | . . . . . 2 1 1 2 Storage . | . . . . . . . . . Processor 9 | . . . 4 2 2 . 1 . Hackware 2 | . . . . . 2 . . . Protection 1 | . . . . . . . . 1 Artifact . | . . . . . . . . . Weapon 12 | 1 1 . 2 2 2 . 2 2 Energy Gun 1 | 1 . . . . . . . . Energy Cannon 2 | . . . 2 . . . . . Ballistic Gun . | . . . . . . . . . Ballistic Cannon . | . . . . . . . . . Launcher . | . . . . . . . . . Special Weapon 1 | . 1 . . . . . . . Impact Weapon 7 | . . . . 2 1 . 2 2 Slashing Weapon 1 | . . . . . 1 . . . Piercing Weapon . | . . . . . . . . . Special Melee Weapon . | . . . . . . . . . Unidentified Prototypes 4 | . . . . . . . . 4 Corrupted Parts 2 | . . . . 2 . . . . System Corruption 17 | . . . . 17 . . . . Parts Lost 31 | . . . 11 8 2 4 2 4 Power 4 | . . . 2 1 . . 1 . Propulsion 15 | . . . 5 5 2 2 . 1 Utility 7 | . . . . 2 . 1 1 3 Weapon 5 | . . . 4 . . 1 . . Highest Loss Streak 7 | . . . 5 7 1 2 1 1 To Critical Strikes 1 | . . . . . . 1 . . Average Slot Usage (%) 72 | . 57 71 79 83 67 69 77 76 Engine 2 | . 14 14 8 . . . . 6 Core 5 | . . . . 7 6 6 6 . Treads 1 | . . . . 21 . . . . Leg 20 | . 28 23 11 12 8 23 30 26 Flight 2 | . . 4 16 . 2 . . 2 Device 3 | . . . . . . 3 7 7 Processor 13 | . . . 21 28 15 9 10 15 Hackware 8 | . . . . . 13 15 10 . Energy Gun 1 | . 14 14 4 . . . . . Impact Weapon 8 | . . . . 11 9 7 10 15 Slashing Weapon 1 | . . . . . 4 1 . . Naked Turns . | . . . . . . . . . Heaviest Build 23 | 6 7 7 13 13 14 12 14 23 Greatest Support 94 | 20 20 20 30 60 90 90 94 94 Greatest Overweight (x) 4 | . . . 1 4 3 . . 1 Average Overweight (x) . | . . . . . . . . . Largest Inventory Capacity 5 | 5 5 5 5 5 5 5 5 5 Average Capacity 5 | 5 5 5 5 5 5 5 5 5 Most Carried 5 | 2 5 5 5 3 5 5 5 5 Average Carried 3 | 1 3 5 3 1 3 3 4 4 Final Capacity 5 | 5 5 5 5 5 5 5 5 5 Final Carried 5 | 2 5 5 3 3 5 5 5 5 Class Distribution -------------------- 48% | Hacker-Mutant 22% | Mutant 16% | Gladiator 5% | Scavenger-Gladiator 3% | Hacker-Gladiator Dominant Class ---------------- Mutant | -10/Materials Mutant | -10/Mines Scavenger-Mutant | -9/Materials Mutant | -8/Materials Hacker-Mutant | -7/Factory Hacker-Mutant | -7/Garrison Hacker-Mutant | -7/Factory Gladiator | -7/Storage Resources | -11 -10 -10 -9 -8 -7 -7 -7 -7 ----------- Run | Yrd Mat Min Mat Mat Fac Gar Fac Sto Matter Collected 757 | 215 25 . 55 95 107 158 79 23 Remotely . | . . . . . . . . . Salvage Created 2152 | . 44 . 166 198 205 874 322 343 Parts 63 | . 6 . 10 8 1 21 4 13 Haulers Intercepted . | . . . . . . . . . Recyclers Shooed . | . . . . . . . . . Parts Field Recycled . | . . . . . . . . . Retrieved Matter . | . . . . . . . . . Parts Self-Destructed . | . . . . . . . . . Prevented . | . . . . . . . . . Kills | -11 -10 -10 -9 -8 -7 -7 -7 -7 ------- Run | Yrd Mat Min Mat Mat Fac Gar Fac Sto Combat Hostiles Destroyed 52 | . 3 . 5 2 4 23 7 8 Melee 26 | . . . . . 3 12 6 5 Guns 3 | . 3 . . . . . . . Cannons 5 | . . . 5 . . . . . Classes Destroyed 8 | . 1 . 2 1 1 1 1 1 Builder 1 | . . . . . 1 . . . Recycler 1 | . . . . 1 . . . . Swarmer 11 | . 3 . . . . 7 . 1 Grunt 30 | . . . 4 . 4 14 5 3 Brawler 1 | . . . . . . . 1 . Sentry 8 | . . . 1 2 . 1 1 3 Hunter 1 | . . . . . . 1 . . Programmer 1 | . . . . . . . . 1 Best Kill Streak 9 | . 3 . 3 2 2 9 3 4 Combat Bots Only 9 | . 3 . 3 1 2 9 3 5 Max Kills in Single Turn 1 | . 1 . 1 1 1 1 1 1 Gunslinging . | . . . . . . . . . Exploded . | . . . . . . . . . Melee 1 | . . . . . 1 1 1 1 Uniques/NPCs Destroyed . | . . . . . . . . . Combat | -11 -10 -10 -9 -8 -7 -7 -7 -7 -------- Run | Yrd Mat Min Mat Mat Fac Gar Fac Sto Hostile Shots Fired 954 | . 14 . 113 57 67 294 195 214 Missed 355 | . 6 . 35 17 22 100 84 91 Damage Taken 7421 | . 59 . 1064 948 696 2449 1204 1001 Core 1229 | . 22 . 225 273 105 271 242 91 Absorbed by Shields 194 | . . . . . . . . 194 Regen/Repaired (Parts) 891 | . . . . . . . 891 . Core Remaining (%) 71 | 100 . 91 43 50 . . . . Volleys Fired 25 | . 5 . 20 . . . . . Largest 2 | . 1 . 2 . . . . . Hottest 140 | . 40 . 140 . . . . . Shots Fired 37 | . 5 . 32 . . . . . Gun 13 | . 5 . 8 . . . . . Cannon 16 | . . . 16 . . . . . Launcher . | . . . . . . . . . Special 8 | . . . 8 . . . . . Kinetic . | . . . . . . . . . Thermal 37 | . 5 . 32 . . . . . Explosive . | . . . . . . . . . Electromagnetic . | . . . . . . . . . Robot Hit Streak 14 | . 4 . 14 . . . . . Robot Miss Streak 2 | . 1 . 2 . . . . . Penetration Max . | . . . . . . . . . Secondary Targets . | . . . . . . . . . Shots Hit Robots 136 | . 4 . 25 11 7 44 14 31 Core Hits 41 | . 3 . 12 2 2 12 5 5 Critical Kills 3 | . . . . 1 . 1 1 . Critical Parts Destroyed 27 | . . . . 2 3 10 4 8 Critical Strikes 30 | . . . . 3 3 11 5 8 Smash 30 | . . . . 3 3 11 5 8 Melee Attacks 168 | . . . . 15 11 59 16 67 Impact 163 | . . . . 15 10 55 16 67 Slashing 5 | . . . . . 1 4 . . Piercing . | . . . . . . . . . Sneak Attacks 2 | . . . . 1 1 . . . Combat Hostiles . | . . . . . . . . . Follow-up Attacks 8 | . . . . . . 4 1 3 Damage Inflicted 5046 | . 44 . 517 238 386 1928 610 1323 Guns 109 | . 44 . 65 . . . . . Cannons 309 | . . . 309 . . . . . Explosions . | . . . . . . . . . Melee 4478 | . . . . 238 386 1928 603 1323 Ramming 30 | . . . 23 . . . 7 . Kinetic . | . . . . . . . . . Thermal 538 | . 44 . 494 . . . . . Explosive . | . . . . . . . . . Electromagnetic . | . . . . . . . . . Impact 4386 | . . . . 238 386 1836 603 1323 Slashing 92 | . . . . . . 92 . . Piercing . | . . . . . . . . . Highest Corruption 17 | . . . . 17 . . 1 4 Average Corruption 5 | . . . . 15 . . 1 1 Corruption Purged . | . . . . . . . . . Corruption Blocked . | . . . . . . . . . Effects 13 | . . . . 10 . . 1 2 Message Errors 4 | . . . . 4 . . . . Matter Fused 5 | . . . . 2 . . 1 2 Heat Flow Errors 1 | . . . . 1 . . . . Energy Discharges 2 | . . . . 2 . . . . Data Loss (major) 1 | . . . . 1 . . . . Overload Shots . | . . . . . . . . . Overflow Damage 1381 | . . . 23 48 180 546 150 434 Projectiles 23 | . . . 23 . . . . . Explosions . | . . . . . . . . . Melee 1358 | . . . . 48 180 546 150 434 Knockbacks 18 | . . . 1 . 2 6 4 5 Impact 17 | . . . 1 . 2 6 3 5 Kinetic . | . . . . . . . . . Secondary 1 | . . . . . . . 1 . Self-Inflicted Damage . | . . . . . . . . . Shots . | . . . . . . . . . Rammed . | . . . . . . . . . Targets Rammed 12 | . . . 11 . . . 1 . Kicked 12 | . . . 11 . . . 1 . Crushed . | . . . . . . . . . Highest Temperature 274 | . . . 274 239 12 12 . . Average Temperature 98 | . . . 102 127 12 4 . . Received Heat Transfer 2608 | . . . 420 72 441 933 453 289 Effects 3 | . . . 3 . . . . . Interference 3 | . . . 3 . . . . . Siege Activations . | . . . . . . . . . Robots Corrupted . | . . . . . . . . . Combat Hostiles . | . . . . . . . . . Parts Fried 18 | . . . . 1 3 9 3 2 Impact Corruptions 53 | . . . . 4 5 22 6 16 Robots Melted . | . . . . . . . . . Combat Hostiles . | . . . . . . . . . Parts Melted 1 | . . . 1 . . . . . Heat Transferred 1055 | . 100 . 955 . . . . . Parts Sabotaged . | . . . . . . . . . Parts Stolen . | . . . . . . . . . Parts Stripped . | . . . . . . . . . Power Chain Reactions . | . . . . . . . . . Alert | -11 -10 -10 -9 -8 -7 -7 -7 -7 ------- Run | Yrd Mat Min Mat Mat Fac Gar Fac Sto Peak Influence 980 | . 90 34 147 157 240 980 831 604 Initial 514 | . . 34 13 55 39 168 514 373 Average 404 | . 52 34 92 126 85 717 661 486 Maximum Alert Level 3 | . . . . . 1 3 3 2 Low Security (%) 42 | 100 100 100 100 100 93 2 . . Level 1 7 | . . . . . 6 14 . 17 Level 2 29 | . . . . . . 19 73 82 Level 3 20 | . . . . . . 63 26 . Level 4 . | . . . . . . . . . Level 5 . | . . . . . . . . . High Security . | . . . . . . . . . Max Security . | . . . . . . . . . Squads Dispatched 17 | . 1 . 1 4 4 . 5 2 Investigation 7 | . . . . 1 3 . 3 . Extermination 2 | . . . . . . . . 2 Reinforcement 7 | . 1 . 1 3 1 . 1 . Assault 1 | . . . . . . . 1 . Garrison . | . . . . . . . . . Intercept . | . . . . . . . . . Searches Triggered . | . . . . . . . . . Construction Impeded . | . . . . . . . . . Haulers Reinforced . | . . . . . . . . . Active Scanning Responses . | . . . . . . . . . Cargo Convoy Interrupts . | . . . . . . . . . Stealth | -11 -10 -10 -9 -8 -7 -7 -7 -7 --------- Run | Yrd Mat Min Mat Mat Fac Gar Fac Sto Distress Signals 7 | . . . 3 . 1 . 2 1 Communications Jammed . | . . . . . . . . . Distress Signals . | . . . . . . . . . Times Spotted 109 | . 5 . 18 5 16 26 22 17 Peak Tracking Total 10 | . 3 . 10 2 6 10 8 6 Tactical Retreats 13 | . 1 . 1 . 1 4 2 4 Traps | -11 -10 -10 -9 -8 -7 -7 -7 -7 ------- Run | Yrd Mat Min Mat Mat Fac Gar Fac Sto Traps Triggered 4 | . . . . 1 . 1 . 2 Indirectly . | . . . . . . . . . Trap Hack Attempts . | . . . . . . . . . Triggered . | . . . . . . . . . Disarmed . | . . . . . . . . . Reprogrammed . | . . . . . . . . . Reused . | . . . . . . . . . Traps Extracted . | . . . . . . . . . Installed . | . . . . . . . . . Triggered . | . . . . . . . . . Machines | -11 -10 -10 -9 -8 -7 -7 -7 -7 ---------- Run | Yrd Mat Min Mat Mat Fac Gar Fac Sto Machines Disabled 6 | . . . . . . 3 1 2 Max in Single Turn 1 | . . . . . . 1 . 1 Garrison Relay 3 | . . . . . . 3 . . Machines Repaired . | . . . . . . . . . Machines Dismantled . | . . . . . . . . . Machines Sabotaged . | . . . . . . . . . Overloaded Fab Kills . | . . . . . . . . . Hacking | -11 -10 -10 -9 -8 -7 -7 -7 -7 --------- Run | Yrd Mat Min Mat Mat Fac Gar Fac Sto Machines Accessed 20 | . 1 . 1 . 7 2 5 4 Terminals 13 | . 1 . . . 4 2 3 3 Fabricators 2 | . . . . . 2 . . . Repair Stations 1 | . . . . . . . 1 . Recycling Units . | . . . . . . . . . Scanalyzers 2 | . . . 1 . . . 1 . Garrison Access 2 | . . . . . 1 . . 1 Total Hacks 61 | . 2 . 2 . 25 3 20 9 Successful 37 | . 1 . 2 . 13 3 14 4 Failed 24 | . 1 . . . 12 . 6 5 Catastrophic 3 | . . . . . 1 . 2 . Database Lockouts . | . . . . . . . . . Manual 31 | . 3 . . . 19 1 3 5 Terminals 41 | . 2 . . . 19 3 10 7 Fabricators 4 | . . . . . 4 . . . Repair Stations 6 | . . . . . . . 6 . Recycling Units . | . . . . . . . . . Scanalyzers 6 | . . . 2 . . . 4 . Garrison Access 4 | . . . . . 2 . . 2 Terminal Hacks 6 | . . . . . 1 2 2 1 Robot Analysis 2 | . . . . . . . 2 . Open Door 1 | . . . . . . . . 1 Emergency Access Points 1 | . . . . . . 1 . . Registered Components 1 | . . . . . 1 . . . Patrol Navigation 1 | . . . . . . 1 . . Fabricator Hacks 4 | . . . . . 4 . . . Load Schematic 2 | . . . . . 2 . . . Build 2 | . . . . . 2 . . . Repair Station Hacks 6 | . . . . . . . 6 . Scan Component 3 | . . . . . . . 3 . Repair 3 | . . . . . . . 3 . Recycling Unit Hacks . | . . . . . . . . . Scanalyzer 6 | . . . 2 . . . 4 . Insert Component 3 | . . . 1 . . . 2 . Analyze 3 | . . . 1 . . . 2 . Garrison Access Hacks 4 | . . . . . 2 . . 2 Unlock Access 2 | . . . . . 1 . . 1 Coupler Status 2 | . . . . . 1 . . 1 Unauthorized Hacks 11 | . 1 . . . 6 1 2 1 Terminals 11 | . 1 . . . 6 1 2 1 Assimilate 2 | . . . . . 2 . . . Botnet 9 | . 1 . . . 4 1 2 1 Fabricators . | . . . . . . . . . Repair Stations . | . . . . . . . . . Recycling Units . | . . . . . . . . . Scanalyzers . | . . . . . . . . . Garrison Access . | . . . . . . . . . Data Cores Recovered . | . . . . . . . . . Used . | . . . . . . . . . Hacking Detections 19 | . 1 . . . 7 2 4 5 Full Trace Events 6 | . . . . . 3 . 3 . Feedback Events 1 | . . . . . . . 1 . Corruption 1 | . . . . . . . 1 . Feedback Blocked . | . . . . . . . . . Robot Schematics Acquired . | . . . . . . . . . Robots Built . | . . . . . . . . . Authchips . | . . . . . . . . . Time . | . . . . . . . . . Total Robot Build Rating . | . . . . . . . . . Part Schematics Acquired 3 | . . . 1 . . . 2 . Parts Built 4 | . . . . . 4 . . . Authchips . | . . . . . . . . . Time 93 | . . . . . 93 . . . Total Part Build Rating 8 | . . . . . 8 . . . Parts Repaired 3 | . . . . . . . 3 . Time 63 | . . . . . . . 63 . Parts Recycled . | . . . . . . . . . Recycled Matter . | . . . . . . . . . Retrieved Matter . | . . . . . . . . . Retrieved Components . | . . . . . . . . . Parts Scanalyzed 3 | . . . 1 . . . 2 . Part Schematics Acquired 3 | . . . 1 . . . 2 . Parts Damaged . | . . . . . . . . . Bothacking | -11 -10 -10 -9 -8 -7 -7 -7 -7 ------------ Run | Yrd Mat Min Mat Mat Fac Gar Fac Sto Used RIF Installer 1 | . . . . . . 1 . . Robots Hacked . | . . . . . . . . . Non-combat . | . . . . . . . . . Combat . | . . . . . . . . . Robot Hacks Applied . | . . . . . . . . . Relay Couplers Released 9 | . . . . . . 9 . . Machine Destruction 9 | . . . . . . 9 . . Fabnet Peak Effective % . | . . . . . . . . . Robots Rewired . | . . . . . . . . . Allies Hacked . | . . . . . . . . . Hacks Repelled . | . . . . . . . . . Allies | -11 -10 -10 -9 -8 -7 -7 -7 -7 -------- Run | Yrd Mat Min Mat Mat Fac Gar Fac Sto Total Allies 2 | . . . . . . 2 . . Largest Group 2 | . . . . . . 2 2 . Highest-Rated Group 160 | . . . . . . 160 160 . Highest-Rated Ally 80 | . . . . . . 80 80 . Total Orders . | . . . . . . . . . Ally Attacks 27 | . . . . . . 5 22 . Total Damage 1148 | . . . . . . 181 967 . Kills 9 | . . . . . . 2 7 . Allies Corrupted . | . . . . . . . . . Allies Melted . | . . . . . . . . . Intel | -11 -10 -10 -9 -8 -7 -7 -7 -7 ------- Run | Yrd Mat Min Mat Mat Fac Gar Fac Sto Robot Analysis Total 2 | . . . . . . . 2 . Derelict Logs Recovered . | . . . . . . . . . Drone Launches . | . . . . . . . . . Drone Recoveries . | . . . . . . . . . Exploration | -11 -10 -10 -9 -8 -7 -7 -7 -7 ------------- Run | Yrd Mat Min Mat Mat Fac Gar Fac Sto Turns Passed 3987 | 50 182 126 239 348 761 1011 697 573 Spaces Moved 2548 | 38 133 141 156 188 599 593 418 282 Core 61 | 4 . . . 8 49 . . . Treads 143 | . . . . 143 . . . . Legs 1842 | 34 133 84 54 37 207 593 418 282 Wheels 318 | . . . 1 . 317 . . . Hover . | . . . . . . . . . Flight 184 | . . 57 101 . 26 . . . Fastest Speed 28 | 50 120 37 28 100 29 130 130 130 Average Speed 121 | 112 120 86 64 152 105 138 130 136 Slowest Speed 250 | 120 120 120 190 250 200 140 135 200 Overloaded Moves . | . . . . . . . . . Propulsion Burnouts . | . . . . . . . . . Robots Hopped 2 | . . . 2 . . . . . Cave-ins Triggered . | . . . . . . . . . Exploration Rate (%) 28 | 3 28 41 29 24 15 59 13 46 Regions Visited 8 Branch Regions 2 Pre-discovered Areas . | . . . . . . . . . Known Exits Taken 1 | . . . . . 1 . . . Unknown Exits Taken 6 | 1 1 1 1 1 . . 1 . Scrap Searched . | . . . . . . . . . Spaces Dug 6 | . . . . 2 . . . 4 Terrain Destroyed 9 | . . . 3 2 . . . 4 Melee 6 | . . . . 2 . . . 4 Projectile 3 | . . . 3 . . . . . AOE . | . . . . . . . . . Terrain Rammed . | . . . . . . . . . Walls Destroyed . | . . . . . . . . . Machines Disabled . | . . . . . . . . . Actions | -11 -10 -10 -9 -8 -7 -7 -7 -7 --------- Run | Yrd Mat Min Mat Mat Fac Gar Fac Sto Total 3109 | 43 150 143 238 219 707 676 550 383 Wait 229 | . 9 1 33 6 50 9 97 24 Move 2536 | 37 132 140 151 187 598 592 417 282 Hop 2 | . . . 2 . . . . . Pick Up 31 | 2 3 . 1 1 10 8 4 2 Fast Attach 56 | 4 1 . 13 6 17 1 5 9 Attach 13 | . . . 2 2 2 5 2 . Detach 2 | . . . . . 1 . 1 . Swap 8 | . . 2 . 2 . 1 2 1 Drop 43 | . . . 5 1 19 5 6 7 Fire 25 | . 5 . 20 . . . . . Melee 152 | . . . . 14 10 55 15 58 Ram . | . . . . . . . . . Kick 12 | . . . 11 . . . 1 . Crush . | . . . . . . . . . Escape Stasis . | . . . . . . . . . Rewire . | . . . . . . . . . Trap . | . . . . . . . . . Miscellaneous . | . . . . . . . . . Route ------- -11/Scrapyard -10/Materials -10/Mines -9/Materials -8/Materials -7/Factory (discovered 2 exits: [*Fac] / Gar) -7/Garrison (discovered 2 exits: *Fac x2) -7/Factory (discovered 2 exits: [*Fac] / *Sto) -7/Storage (discovered 1 exit: Gar) History --------- Turn | Location | Event 3 | -11/Scrapyard | Discovered new exit (range 15) 51 | -11/Scrapyard | Entered Materials 211 | -10/Materials | Discovered new exit (range 11) 233 | -10/Materials | Entered Mines 240 | -10/Mines | Met a Derelict bent on vengeance 307 | -10/Mines | Build established: Mutant 356 | -10/Mines | Discovered new exit (range 7) 359 | -10/Mines | Entered Materials 359 | -9/Materials | Evolved 2 slots: Propulsion x2 478 | -9/Materials | Lost 5 parts (1p2n2w) 563 | -9/Materials | Lost 3 parts (2n1w) 572 | -9/Materials | Core integrity fell below 50% 593 | -9/Materials | Discovered new exit (range 5) 598 | -9/Materials | Entered another Materials area 598 | -8/Materials | Evolved 2 slots: Utility x2 609 | -8/Materials | Lost 3 parts (1p1n1w) 719 | -8/Materials | System corruption reached 10% 913 | -8/Materials | Discovered new exit (range 15) 946 | -8/Materials | Entered Factory 946 | -7/Factory | Evolved 2 slots: Propulsion x2 967 | -7/Factory | Lost 7 parts (1p4n2u) 1203 | -7/Factory | Discovered new exit (range 3) 1339 | -7/Factory | Fabricated VTOL Module? 1460 | -7/Factory | Build established: Hacker-Mutant 1566 | -7/Factory | Fabricated VTOL Module? 1705 | -7/Factory | Identified exit to Garrison 1707 | -7/Factory | Entered Garrison 1722 | -7/Garrison | Triggered checkpoint 1761 | -7/Garrison | Garrison Relay disabled 1840 | -7/Garrison | Triggered checkpoint 1919 | -7/Garrison | Destroyed 9 combat bots 2011 | -7/Garrison | Discovered new exit (range 8) 2042 | -7/Garrison | Triggered checkpoint 2073 | -7/Garrison | Garrison Relay disabled 2158 | -7/Garrison | Triggered checkpoint 2176 | -7/Garrison | Core integrity fell below 50% 2258 | -7/Garrison | Triggered checkpoint 2279 | -7/Garrison | Garrison Relay disabled 2367 | -7/Garrison | Discovered new exit (range 8) 2513 | -7/Garrison | Found embedded Infiltrators 2538 | -7/Garrison | Installed Relay Interface Framework 2628 | -7/Garrison | Triggered checkpoint 2718 | -7/Garrison | Entered Factory 2718 | -7/Factory | Accompanied by 2 allies 2743 | -7/Factory | Discovered new exit (range 9) 2895 | -7/Factory | Repaired Lgt. Armored Exoskeleton 2920 | -7/Factory | Repaired Lgt. Armored Exoskeleton 2945 | -7/Factory | Repaired Great Maul 3118 | -7/Factory | First assault squad dispatched 3377 | -7/Factory | Core integrity fell below 20% 3393 | -7/Factory | Discovered new exit (range 6) 3415 | -7/Factory | Entered Storage 3658 | -7/Storage | Build established: Gladiator 3800 | -7/Storage | Identified exit to Garrison 3988 | -7/Storage | Destroyed by P-60 Hacker with Shock Rifle Last Messages --------------- 03953_ P-60 Hacker system corrupted by crushing effect. 03953_ P-60 Hacker knocked back. 03956_ Destroyed Imp. Heat Sink. 03956_ P-60 Hacker system corrupted by crushing effect. 03956_ P-60 Hacker knocked back. 03960_ Destroyed Mic. Nuclear Core. 03960_ P-60 Hacker system corrupted by crushing effect. 03960_ P-60 Hacker resets P-60 Hacker, system corruption cleaned. 03962_ Shield Generator destroyed. 03963_ System corrupted: Matter fused (-10). 03966_ P-60 Hacker suffers critical hit (Smash). 03966_ Destroyed Gravmag System. 03966_ P-60 Hacker system corrupted by crushing effect. 03966_ P-60 Hacker destroyed. 03981_ Connecting with Terminal... Map ----- +----------------------------------------------------+ | ????????????????????????????????????????? | | ????????????? ????????????????????????? | | ???????????? ???????????????????????? | | ???????????? ???????????????????????? | | ???????????? ???????????????????????? | | ???????????? ???????????????????????? | | ????????????# #???????????????????????? | | ????????????# #???????????????????????? | | ????????????# #???????????????????????? | | ????????????# #???????????????????????? | | ????????????# #???????????????????????? | | ????????????# #???????????????????????? | | ????????????# #???????????????????????? | | ????????????# #???????????????????????? | | ????????????# #???????????????????????? | | ???????????## ##??????????????????????? | | ???????????# ###############????????? | | ???????????# " ??????? | | ???????????# "T ??????? | | ???????????# ??????? | | ???????????# p########???????????????? | | ???????????##### #??????????????????????? | | ???????????????# #???###????????????????? | | ????????######## #???# ???????#????????? | | ????????# # #???# ?""""? #????????? | | ????????# =#@#???# ?"!["? #????????? | | ????????#""" [+%#???# """ =" #????????? | | ????????#""" =#*#???# "[]""" #????????? | | ????????#""" #%##### []"" #????????? | | ????????# #[ + """" #????????? | | ????????######## # #????????? | | ??????????###### #####+############## | | ??????????# | | ??????????# | | ??????????# | | ??????????#######+########+############## | | ????????????????# T#?# = #???? | | ????????????????# ##?# """ """ #???? | | ????????????????#!!!#??# """ """ #???# | | ????????????????#!!!#??# """ """ #???# | | ????????????????#####??# !#???# | | ???????????????????????##############???# | | | | | | | | | | | | | | | | | +----------------------------------------------------+ Best States ------------- Heat Dissipation 34 Energy Generation 18 Energy Capacity 310 Matter Stores 300 Matter Capacity 300 Sight Range 20 Terrain Scan Density 10 Armor Coverage 150 Melee Speed Boost 20 Evasion (%) 64 Targeting Accuracy 12 Melee Accuracy 5 Target Analysis 7 Core Analysis 6 Recoil Reduction 3 Offensive Hacking 10 Defensive Hacking 10 Authchip Count 3 Item Schematics ----------------- VTOL Module | -9/Materials | Scanalyzed Lgt. Armored Exoskeleton | -7/Factory | Scanalyzed Microactuators | -7/Factory | Scanalyzed Robot Schematics ------------------ None Fabricated ------------ VTOL Module | x2 | -7/Factory VTOL Module | x2 | -7/Factory Alien Tech Used ----------------- None Achievements -------------- None Challenges ------------ None Game ------ Seed ReinforcedMakeshiftGuard Manual? 0 Play Time 00:54:19 Cumulative 19.7 hours Start 2024.04.07 @ 01:30:04 End 2024.04.07 @ 02:23:43 Sessions 1 Manual Loads 0 Difficulty Rogue Special Mode None Game No. 27 Rogue 27 Adventurer 0 Explorer 0 Win Type - Total 0 Types 0/0/0/0/0/0/0/0/0 Lore% 12 Gallery% 25 Achievement% 22 Wizard Run 0 Options --------- Layout 1 ASCII 0 Keyboard 0 Movement Numpad Keybinds 0 Fullscreen 1 Font 24/Crisp Map View 50x35 Zoom Use 0% Tactical HUD 1 Map Filters NONE Filters NONE Steam 1 RUN: bbc06606-87eb-477a-9d71-ca8472a1fce4